Cogmind - Beta 13 @@@ ROGUE MODE // 2024.05.21 @ 20:04:02 Player: Wicz Result: Destroyed by Y-45 Defender with Heavy Assault Rifle Performance ------------- Evolutions (2) 1000 Regions Visited (5) 1000 Robots Destroyed (15) 75 Value Destroyed (499) 499 Prototype IDs (1) 20 Alien Tech Used (0) 0 Bonus (176) 176 TOTAL SCORE: 2770 Bonus ------- Aligned with FarCom 300 Friendly Fire -124 Cogmind --------- Core Integrity 0/550 Matter 118/300 Energy 139/240 System Corruption 1% Temperature Cool (9) Movement Rolling (80) Location -8/Materials Parts ------- > --- POWER (1) -------- Nuclear Core > --- PROPULSION (3) --- Wheel > --- UTILITY (4) ------ Signal Interpreter > --- WEAPON (3) ------- (None) > --- INVENTORY (5) ---- Light Ion Engine System Restoration Module Supersonic Drone Bay (0/1) Peak State ------------ > --- POWER ------------ Nuclear Core > --- PROPULSION ------- Aluminum Leg Aluminum Leg Wheel > --- UTILITY ---------- Small Storage Unit Signal Interpreter Transmission Jammer Transmission Jammer > --- WEAPON ----------- Particle Gun Particle Gun Rocket Launcher > --- INVENTORY -------- Light Ion Engine Nuclear Core Wheel System Restoration Module Supersonic Drone Bay Remote Datajack Mining Laser [Rating: 24] Favorites ----------- Power Ion Engine Engine Ion Engine Power Core Nuclear Core Propulsion Light Treads Treads Light Treads Leg Aluminum Leg Wheel Wheel Utility Small Storage Unit Device Supersonic Drone Bay Storage Small Storage Unit Processor Signal Interpreter Weapon Light Assault Rifle Energy Gun EM Pulse Gun Ballistic Gun Light Assault Rifle Ballistic Cannon Flak Cannon Launcher Rocket Launcher Special Weapon Remote Datajack Build | -11 -10 -10 -10 -9 -8 ------- Run | Yrd Mat Min Exi Min Mat Slots Evolved 4 | . . . . . 4 Power . | . . . . . . Propulsion 1 | . . . . . 1 Utility 2 | . . . . . 2 Weapon 1 | . . . . . 1 Parts Attached 25 | 6 . . 1 6 12 Power 4 | 1 . . . 1 2 Engine 2 | 1 . . . 1 . Core 2 | . . . . . 2 Reactor . | . . . . . . Propulsion 8 | 2 . . . 2 4 Treads 2 | 2 . . . . . Leg 3 | . . . . . 3 Wheel 3 | . . . . 2 1 Hover . | . . . . . . Flight . | . . . . . . Utility 5 | 1 . . 1 1 2 Device 3 | . . . 1 . 2 Storage 1 | 1 . . . . . Processor 1 | . . . . 1 . Hackware . | . . . . . . Protection . | . . . . . . Artifact . | . . . . . . Weapon 8 | 2 . . . 2 4 Energy Gun 3 | 1 . . . 1 1 Energy Cannon . | . . . . . . Ballistic Gun 1 | 1 . . . . . Ballistic Cannon 1 | . . . . . 1 Launcher 1 | . . . . 1 . Special Weapon 2 | . . . . . 2 Impact Weapon . | . . . . . . Slashing Weapon . | . . . . . . Piercing Weapon . | . . . . . . Special Melee Weapon . | . . . . . . Unidentified Prototypes 1 | . . . 1 . . Parts Lost 19 | . . . . 5 14 Power 2 | . . . . 1 1 Propulsion 6 | . . . . 2 4 Utility 3 | . . . . . 3 Weapon 8 | . . . . 2 6 Highest Loss Streak 11 | . . . . 5 11 To Critical Strikes . | . . . . . . Average Slot Usage (%) 83 | . 85 85 87 91 59 Engine 12 | . 14 14 14 12 1 Treads 22 | . 28 28 28 11 . Leg 1 | . . . . . 10 Wheel 1 | . . . . 9 4 Device 3 | . . . 2 12 8 Storage 13 | . 14 14 14 14 8 Processor 1 | . . . . 1 9 Energy Gun 13 | . 14 14 14 12 8 Ballistic Gun 11 | . 14 14 14 5 . Launcher 1 | . . . . 9 3 Naked Turns . | . . . . . . Heaviest Build 24 | 13 13 13 14 16 24 Greatest Support 40 | 40 40 40 40 40 20 Greatest Overweight (x) 5 | . . . . 5 5 Average Overweight (x) . | . . . . . . Largest Inventory Capacity 8 | 8 8 8 8 8 8 Average Capacity 7 | 6 8 8 8 8 7 Most Carried 8 | 4 4 6 7 6 8 Average Carried 4 | 2 3 4 6 4 5 Final Capacity 8 | 8 8 8 8 8 5 Final Carried 6 | 3 4 6 6 5 3 Class Distribution -------------------- 93% | Mutant 6% | Skirmisher Dominant Class ---------------- Mutant | -10/Materials Mutant | -10/Mines Mutant | -10/Exiles Mutant | -9/Mines Mutant | -8/Materials Resources | -11 -10 -10 -10 -9 -8 ----------- Run | Yrd Mat Min Exi Min Mat Matter Collected 369 | 208 61 . . 75 25 Remotely . | . . . . . . Salvage Created 463 | . 217 . . 135 111 Parts 22 | . 11 . . 8 3 Haulers Intercepted . | . . . . . . Recyclers Shooed . | . . . . . . Parts Field Recycled . | . . . . . . Retrieved Matter . | . . . . . . Parts Self-Destructed . | . . . . . . Prevented . | . . . . . . Kills | -11 -10 -10 -10 -9 -8 ------- Run | Yrd Mat Min Exi Min Mat Combat Hostiles Destroyed 32 | . 5 . . 23 4 Guns 8 | . 4 . . 4 . Cannons 2 | . . . . . 2 AOE 22 | . 1 . . 19 2 Classes Destroyed 8 | . 1 . . 3 4 Builder 1 | . . . . . 1 Drone 1 | . . . . 1 . Watcher 1 | . . . . . 1 Swarmer 4 | . . . . 4 . Grunt 7 | . 5 . . . 2 Duelist 1 | . . . . . 1 Hunter 1 | . . . . . 1 Assembled 19 | . . . . 19 . Best Kill Streak 19 | . 2 . . 19 4 Combat Bots Only 19 | . 2 . . 19 2 Max Kills in Single Turn 6 | . 1 . . 6 1 Gunslinging . | . . . . . . Exploded 6 | . 1 . . 6 1 Melee . | . . . . . . Uniques/NPCs Destroyed . | . . . . . . Combat | -11 -10 -10 -10 -9 -8 -------- Run | Yrd Mat Min Exi Min Mat Hostile Shots Fired 220 | . 17 . . 90 113 Missed 55 | . 2 . . 32 21 Damage Taken 2462 | . 192 . . 768 1502 Core 747 | . 44 . . 148 555 Absorbed by Shields . | . . . . . . Core Remaining (%) 61 | 100 . . . 23 . Volleys Fired 57 | . 15 . . 19 23 Largest 3 | . 2 . . 2 3 Hottest 163 | . 60 . . 60 163 Shots Fired 96 | . 30 . . 34 32 Gun 71 | . 30 . . 27 14 Cannon 11 | . . . . . 11 Launcher 12 | . . . . 7 5 Special 2 | . . . . . 2 Kinetic 43 | . 15 . . 17 11 Thermal 15 | . . . . . 15 Explosive 12 | . . . . 7 5 Electromagnetic 25 | . 15 . . 10 . Robot Hit Streak 7 | . 7 . . 6 6 Robot Miss Streak 7 | . 2 . . 4 7 Penetration Max . | . . . . . . Secondary Targets 1 | . . . . 1 . Max Gunslinging Chain 1 | . . . . 1 . Shots Hit Robots 60 | . 21 . . 18 21 Core Hits 71 | 1 10 . . 36 24 Critical Kills . | . . . . . . Critical Parts Destroyed . | . . . . . . Critical Strikes . | . . . . . . Melee Attacks . | . . . . . . Impact . | . . . . . . Slashing . | . . . . . . Piercing . | . . . . . . Sneak Attacks . | . . . . . . Combat Hostiles . | . . . . . . Follow-up Attacks . | . . . . . . Damage Inflicted 2303 | 3 305 . . 1339 656 Guns 563 | . 234 . . 182 147 Cannons 183 | . . . . . 183 Explosions 1513 | . 68 . . 1157 288 Melee . | . . . . . . Ramming 20 | 3 3 . . . 14 Kinetic 339 | . 82 . . 74 183 Thermal 239 | . 68 . . . 171 Explosive 1445 | . . . . 1157 288 Electromagnetic 260 | . 152 . . 108 . Impact . | . . . . . . Slashing . | . . . . . . Piercing . | . . . . . . Highest Corruption 1 | . . . . . 1 Average Corruption 1 | . . . . . 1 Corruption Purged . | . . . . . . Corruption Blocked . | . . . . . . Overload Shots . | . . . . . . Overflow Damage 2 | . . . . . 2 Projectiles . | . . . . . . Explosions 2 | . . . . . 2 Melee . | . . . . . . Knockbacks 8 | . . . . . 8 Impact . | . . . . . . Kinetic 8 | . . . . . 8 Secondary . | . . . . . . Self-Inflicted Damage 132 | . 8 . . 27 97 Shots 5 | . 1 . . 1 3 Rammed 10 | 1 1 . . . 8 Targets Rammed 11 | 1 1 . . . 9 Kicked 1 | . . . . . 1 Crushed . | . . . . . . Highest Temperature 521 | . 70 . . 40 521 Average Temperature 144 | . 33 . . 15 315 Received Heat Transfer 609 | . 105 . . . 504 Effects 9 | . . . . . 9 Shutdowns 1 | . . . . . 1 Energy Bleed 2 | . . . . . 2 Interference 2 | . . . . . 2 Short Circuit 2 | . . . . . 2 Damage (minor) 2 | . . . . . 2 Siege Activations . | . . . . . . Robots Corrupted . | . . . . . . Combat Hostiles . | . . . . . . Parts Fried . | . . . . . . Impact Corruptions . | . . . . . . Robots Melted . | . . . . . . Combat Hostiles . | . . . . . . Parts Melted 1 | . . . . . 1 Heat Transferred 433 | . 50 . . . 383 Parts Sabotaged . | . . . . . . Parts Stolen . | . . . . . . Parts Stripped . | . . . . . . Power Chain Reactions 1 | . 1 . . . . Alert | -11 -10 -10 -10 -9 -8 ------- Run | Yrd Mat Min Exi Min Mat Peak Influence 173 | . 77 30 . 105 173 Initial 37 | . . 30 . . 37 Average 45 | . 13 30 . 90 88 Maximum Alert Level . | . . . . . . Low Security (%) 100 | 100 100 100 . 100 100 Level 1 . | . . . . . . Level 2 . | . . . . . . Level 3 . | . . . . . . Level 4 . | . . . . . . Level 5 . | . . . . . . High Security . | . . . . . . Max Security . | . . . . . . Squads Dispatched 3 | . 3 . . . . Investigation . | . . . . . . Extermination . | . . . . . . Reinforcement 3 | . 3 . . . . Assault . | . . . . . . Garrison . | . . . . . . Intercept . | . . . . . . Searches Triggered . | . . . . . . Construction Impeded . | . . . . . . Haulers Reinforced . | . . . . . . Active Scanning Responses . | . . . . . . Cargo Convoy Interrupts . | . . . . . . Stealth | -11 -10 -10 -10 -9 -8 --------- Run | Yrd Mat Min Exi Min Mat Distress Signals 3 | . 2 . . . 1 Communications Jammed 10 | . . . . . 10 Distress Signals 10 | . . . . . 10 Times Spotted 39 | . 6 . . 21 12 Peak Tracking Total 17 | . 4 . . 17 4 Tactical Retreats 1 | . . . . . 1 Traps | -11 -10 -10 -10 -9 -8 ------- Run | Yrd Mat Min Exi Min Mat Traps Triggered . | . . . . . . Indirectly . | . . . . . . Trap Hack Attempts . | . . . . . . Triggered . | . . . . . . Disarmed . | . . . . . . Reprogrammed . | . . . . . . Reused . | . . . . . . Traps Extracted . | . . . . . . Installed . | . . . . . . Triggered . | . . . . . . Machines | -11 -10 -10 -10 -9 -8 ---------- Run | Yrd Mat Min Exi Min Mat Machines Disabled 5 | . 1 . . . 4 Max in Single Turn 3 | . 1 . . . 3 Machines Repaired . | . . . . . . Machines Dismantled . | . . . . . . Machines Sabotaged . | . . . . . . Overloaded Fab Kills . | . . . . . . Hacking | -11 -10 -10 -10 -9 -8 --------- Run | Yrd Mat Min Exi Min Mat Machines Accessed 5 | . 2 1 2 . . Terminals 3 | . 2 1 . . . Fabricators . | . . . . . . Repair Stations . | . . . . . . Recycling Units . | . . . . . . Scanalyzers . | . . . . . . Garrison Access . | . . . . . . Total Hacks 30 | . 4 1 25 . . Successful 28 | . 2 1 25 . . Failed 2 | . 2 . . . . Catastrophic . | . . . . . . Database Lockouts . | . . . . . . Manual 5 | . . . 5 . . Terminals 5 | . 4 1 . . . Fabricators . | . . . . . . Repair Stations . | . . . . . . Recycling Units . | . . . . . . Scanalyzers . | . . . . . . Garrison Access . | . . . . . . Terminal Hacks 28 | . 2 1 25 . . Record 26 | . 1 . 25 . . Zone Layout 2 | . 1 1 . . . Fabricator Hacks . | . . . . . . Repair Station Hacks . | . . . . . . Recycling Unit Hacks . | . . . . . . Scanalyzer . | . . . . . . Garrison Access Hacks . | . . . . . . Unauthorized Hacks . | . . . . . . Terminals . | . . . . . . Fabricators . | . . . . . . Repair Stations . | . . . . . . Recycling Units . | . . . . . . Scanalyzers . | . . . . . . Garrison Access . | . . . . . . Data Cores Recovered . | . . . . . . Used . | . . . . . . Hacking Detections 1 | . 1 . . . . Full Trace Events . | . . . . . . Feedback Events . | . . . . . . Feedback Blocked . | . . . . . . Robot Schematics Acquired . | . . . . . . Robots Built . | . . . . . . Authchips . | . . . . . . Time . | . . . . . . Total Robot Build Rating . | . . . . . . Part Schematics Acquired . | . . . . . . Parts Built . | . . . . . . Authchips . | . . . . . . Time . | . . . . . . Total Part Build Rating . | . . . . . . Parts Repaired . | . . . . . . Time . | . . . . . . Parts Recycled . | . . . . . . Recycled Matter . | . . . . . . Retrieved Matter . | . . . . . . Retrieved Components . | . . . . . . Parts Scanalyzed . | . . . . . . Part Schematics Acquired . | . . . . . . Parts Damaged . | . . . . . . Bothacking | -11 -10 -10 -10 -9 -8 ------------ Run | Yrd Mat Min Exi Min Mat Used RIF Installer . | . . . . . . Robots Hacked 1 | . . . . . 1 Non-combat . | . . . . . . Combat 1 | . . . . . 1 Robot Hacks Applied 1 | . . . . . 1 parse_system 1 | . . . . . 1 Relay Couplers Released . | . . . . . . Fabnet Peak Effective % . | . . . . . . Robots Rewired . | . . . . . . Allies Hacked . | . . . . . . Hacks Repelled . | . . . . . . Allies | -11 -10 -10 -10 -9 -8 -------- Run | Yrd Mat Min Exi Min Mat Total Allies 2 | . . 2 . . . Largest Group 2 | . . 2 2 . . Highest-Rated Group 48 | . . 48 48 . . Highest-Rated Ally 31 | . . 31 31 . . Total Orders . | . . . . . . Ally Attacks . | . . . . . . Total Damage . | . . . . . . Kills . | . . . . . . Allies Corrupted . | . . . . . . Allies Melted . | . . . . . . Intel | -11 -10 -10 -10 -9 -8 ------- Run | Yrd Mat Min Exi Min Mat Robot Analysis Total . | . . . . . . Derelict Logs Recovered 1 | . . . . 1 . Drone Launches 1 | . . . . 1 . Drone Recoveries . | . . . . . . Exploration | -11 -10 -10 -10 -9 -8 ------------- Run | Yrd Mat Min Exi Min Mat Turns Passed 2546 | 88 599 226 1008 270 355 Spaces Moved 1355 | 50 147 141 629 170 218 Core 143 | 7 . . . 18 118 Treads 1004 | 43 147 141 629 44 . Legs 93 | . . . . . 93 Wheels 115 | . . . . 108 7 Hover . | . . . . . . Flight . | . . . . . . Fastest Speed 50 | 50 160 160 160 80 50 Average Speed 148 | 144 160 160 160 123 120 Slowest Speed 300 | 160 160 160 160 300 300 Overloaded Moves . | . . . . . . Propulsion Burnouts . | . . . . . . Robots Hopped . | . . . . . . Cave-ins Triggered . | . . . . . . Exploration Rate (%) 38 | 4 33 31 90 48 23 Regions Visited 5 Branch Regions 3 Pre-discovered Areas 1 | . . . 1 . . Known Exits Taken 1 | . . . . 1 . Unknown Exits Taken 4 | 1 1 1 1 . . Scrap Searched 2 | . . 1 . 1 . Spaces Dug . | . . . . . . Terrain Destroyed 74 | . 2 . . 49 23 Melee . | . . . . . . Projectile . | . . . . . . AOE 74 | . 2 . . 49 23 Terrain Rammed . | . . . . . . Walls Destroyed . | . . . . . . Machines Disabled . | . . . . . . Actions | -11 -10 -10 -10 -9 -8 --------- Run | Yrd Mat Min Exi Min Mat Total 1793 | 65 483 142 631 198 274 Wait 323 | . 320 . . . 3 Move 1350 | 49 146 140 628 169 218 Hop . | . . . . . . Pick Up 25 | 9 1 2 1 4 8 Fast Attach . | . . . . . . Attach 23 | 6 . . 1 5 11 Detach 1 | . . . . . 1 Swap 2 | . . . . 1 1 Drop . | . . . . . . Fire 57 | . 15 . . 19 23 Melee . | . . . . . . Ram 8 | . . . . . 8 Kick 1 | . . . . . 1 Crush 2 | 1 1 . . . . Escape Stasis . | . . . . . . Rewire 1 | . . . 1 . . Trap . | . . . . . . Miscellaneous . | . . . . . . Route ------- -11/Scrapyard -10/Materials (discovered 3 exits: [*Mat] / *Min x2) -10/Mines -10/Exiles (discovered 2 exits: [*Min x2]) -9/Mines -8/Materials History --------- Turn | Location | Event 7 | -11/Scrapyard | Discovered new exit (range 15) 89 | -11/Scrapyard | Entered Materials 318 | -10/Materials | Build established: Mutant 599 | -10/Materials | Discovered new exit (range 13) 667 | -10/Materials | Discovered new exit (range 13) 676 | -10/Materials | Discovered new exit (range 16) 688 | -10/Materials | Entered Mines 822 | -10/Mines | Received a Rocket Launcher from a helpful Derelict 908 | -10/Mines | Deemed a non-threat by the Exiles lab entrance 908 | -10/Mines | Discovered new exit (range 5) 914 | -10/Mines | Entered Exiles 914 | -10/Exiles | Accompanied by 2 allies 942 | -10/Exiles | Discovered new exit (range 15) 944 | -10/Exiles | Led the pair of lost Derelicts to a safe place 961 | -10/Exiles | Met 8R-AWN 996 | -10/Exiles | Met EX-HEX 1085 | -10/Exiles | Met EX-DEC 1140 | -10/Exiles | Visited The Gauntlet 1322 | -10/Exiles | Learned location of Zion (-7) 1423 | -10/Exiles | Discovered new exit (range 11) 1507 | -10/Exiles | Met EX-BIN 1530 | -10/Exiles | Aligned with FarCom system 1531 | -10/Exiles | Given EX-Vault access code 1759 | -10/Exiles | Opened EX-Vault 1768 | -10/Exiles | Found Prototype Device 1769 | -10/Exiles | Identified Supersonic Drone Bay 1805 | -10/Exiles | Warned to stay clear of 0b10 Research branches 1922 | -10/Exiles | Left Exiles lab with Supersonic Drone Bay 1922 | -10/Exiles | Entered Mines 1950 | -9/Mines | Met a Derelict bent on vengeance 1964 | -9/Mines | Learned Materials interactive machine intel 2007 | -9/Mines | Assembled infested the area 2029 | -9/Mines | Core integrity fell below 50% 2070 | -9/Mines | Destroyed 19 combat bots 2072 | -9/Mines | Lost 5 parts (1p2n2w) 2186 | -9/Mines | Discovered new exit (range 9) 2191 | -9/Mines | Identified exit to Materials 2192 | -9/Mines | Entered Materials 2192 | -8/Materials | Evolved 4 slots: Propulsion x1, Utility x2, Weapon x1 2193 | -8/Materials | Loaded intel: 19 interactive machine locations 2408 | -8/Materials | Core integrity fell below 50% 2426 | -8/Materials | Lost 11 parts (1p4n1u5w) 2541 | -8/Materials | Core integrity fell below 20% 2547 | -8/Materials | Destroyed by Y-45 Defender with Heavy Assault Rifle Last Messages --------------- 02436_ U-05 Engineer builds a Door. 02439_ K-01 Serf collects debris. 02440_ W-25 Informer sends out distress signal. 02441_ M-13 Machinist repairs M-13 Machinist. 02441_ U-05 Engineer lays Concrete. 02442_ Critical hit (Burn: +37). 02450_ U-05 Engineer lays Concrete. 02452_ Flak Cannon destroyed. 02454_ U-05 Engineer lays Concrete. 02461_ Slammed into R-06 Scavenger. 02485_ K-01 Serf collects debris. 02492_ K-01 Serf cleans the Atomic Centrifuge. 02505_ T-07 Excavator is excavating. 02522_ Sml. Storage Unit destroyed. 02522_ T-07 Excavator is excavating. 02540_ Slammed into G-47 Trooper. 02541_ Slammed into Y-45 Defender. 02544_ T-07 Excavator is excavating. 02546_ Transmission Jammer destroyed. Map ----- +----------------------------------------------------+ | | | | | | | | | | | | | | | | | | | | | | | | | | | | | ????????????????????????????????????????????? | | ????????????????????????????????????????????? | | ????????????????#####???????????????????????? | | ????????????????# #???????????????????????? | | ????????????????# #???????????????????????? | | ????????????????# #???????????????????????? | | ????????????????# #???????????????????????? | | ????????????????# #???????????????????????? | | ????????????????# #???????????????????????? | | ????????????????# #?????##+##?????????????? | | ???????????????###+####### ##+#??????????? | | ??????????????## Y @ #????????? | | ??????????????#" gY #????????? | | ??????????????#T """ "# ##+###????????? | | ???????????# " """ "######?????????????? | | ???????????# # """ "#??????????????????? | | ???????????# T#??????????????????? | | ???????????### # "#??????????????????? | | ?????????????### """ "#??????????????????? | | ???????????????# """ "#??????????????????? | | ???????????????# """ #??????????????????? | | #######????????# #??????????????????? | | #????????# #??????????????????? | | #????????# #??????????????????? | | ? ########## ##"Y"####??????????????????? | | ??# # ## ##"""#?????????????????????? | | ??# # """ ##w######?????????????????????? | | ??# # """ [## #??????????????????????????? | | ??# + """ ## #??????????????????????????? | | ??# # ## #??????????????????????????? | | ??# ######+###+#####??????????????????????? | | ??# / [ #??????????????????????? | | ?###+####### [! #??????????????????????? | | ?# ## ! #??????????????????????? | | ?# """ ## #??????????????????????? | | ?# """ ## """ """ #??????????????????????? | +----------------------------------------------------+ Best States ------------- Heat Dissipation 31 Energy Generation 14 Energy Capacity 250 Matter Stores 300 Matter Capacity 300 Sight Range 16 Terrain Scan Density 10 Jamming Range 12 Evasion (%) 55 Recoil Reduction 2 Item Schematics ----------------- None Robot Schematics ------------------ None Fabricated ------------ Nothing Alien Tech Used ----------------- None Achievements -------------- Exterminator Total Silence Tourist Challenges ------------ None Game ------ Seed AluminumScatterScythe Manual? 0 Play Time 00:24:50 Cumulative 6.2 hours Start 2024.05.21 @ 19:40:29 End 2024.05.21 @ 20:04:02 Sessions 1 Manual Loads 0 Difficulty Rogue Special Mode None Game No. 10 Rogue 10 Adventurer 0 Explorer 0 Win Type - Total 0 Types 0/0/0/0/0/0/0/0/0 Lore% 7 Gallery% 12 Achievement% 11 Wizard Run 0 Options --------- Layout 1 ASCII 0 Keyboard 0 Movement Mouse Keybinds 0 Fullscreen 1 Font 24/Smallcaps Map View 50x35 Zoom Use 0% Tactical HUD 1 Map Filters NONE Filters NONE Steam 1 RUN: e7eaae9b-eb79-4aac-9df3-6a5322dba517